bitfinex/quotes_BTCUSD_20230404
["timestamp","ask_amount","ask_price","bid_price","bid_amount"]
[1680589714158,0.01692144,27896.0,27895.0,1.96190168]
[1680589714576,0.01692144,27896.0,27895.0,1.732614]
[1680589714702,0.01692144,27896.0,27895.0,1.553394]
[1680589714906,0.01692144,27896.0,27895.0,1.732624]
[1680589715753,0.01474909,27896.0,27895.0,1.732624]
[1680589718684,0.01474909,27896.0,27895.0,2.1116069]
[1680589718874,0.01474909,27896.0,27895.0,1.553394]
[1680589719106,0.01474909,27896.0,27895.0,1.732624]
[1680589720902,0.01474909,27896.0,27895.0,1.553394]
[1680589721125,0.01474909,27896.0,27895.0,1.732614]
[1680589722674,0.01474909,27896.0,27895.0,1.553394]
[1680589723328,0.01474909,27896.0,27895.0,1.732624]
[1680589726940,0.01474909,27896.0,27895.0,1.732634]
[1680589727160,0.01474909,27896.0,27895.0,1.732624]
[1680589727515,0.01474909,27896.0,27895.0,1.553394]
[1680589732382,0.01474909,27896.0,27895.0,1.732604]
[1680589734025,0.01474909,27896.0,27895.0,1.741104]
[1680589737114,0.01463598,27896.0,27895.0,1.741104]
[1680589739538,0.01463598,27896.0,27895.0,1.79665193]
[1680589740193,0.01463598,27896.0,27895.0,1.79664193]
[1680589741056,0.01463598,27896.0,27895.0,1.87344193]
[1680589743767,0.02288,27897.0,27896.0,0.54249195]
[1680589743980,0.02288,27897.0,27896.0,1.51339565]
[1680589744207,0.02288,27897.0,27896.0,1.53229565]
[1680589745309,0.02288,27897.0,27896.0,1.56029565]
[1680589745974,0.01996776,27897.0,27896.0,1.56029565]
[1680589747919,0.01996776,27897.0,27896.0,1.53229565]
[1680589748127,0.01996776,27897.0,27896.0,1.56029565]
[1680589748357,0.01996776,27897.0,27896.0,1.53229565]
[1680589748578,0.01996776,27897.0,27896.0,1.56029565]
[1680589749909,0.01996776,27897.0,27896.0,1.46029565]
[1680589752207,0.01996776,27897.0,27896.0,1.46019996]
[1680589752424,0.01996776,27897.0,27896.0,1.63940996]
[1680589760568,0.01996776,27897.0,27896.0,1.28160615]
[1680589760787,0.01996776,27897.0,27896.0,1.31028315]
[1680589762317,0.01996776,27897.0,27896.0,1.48951315]
[1680589764028,0.01996776,27897.0,27896.0,1.31028315]
[1680589768657,0.01996776,27897.0,27896.0,1.48951315]
[1680589768881,0.01996776,27897.0,27896.0,1.63852562]
[1680589769677,0.01996776,27897.0,27896.0,1.31028315]
[1680589772475,0.01986997,27897.0,27896.0,1.31028315]
[1680589773523,0.01986997,27897.0,27896.0,1.36626369]
[1680589775861,0.0173443,27897.0,27896.0,1.36626369]
[1680589778108,0.0173443,27897.0,27896.0,1.36669514]
[1680589778855,0.0173443,27897.0,27896.0,0.97616458]
[1680589779075,0.0173443,27897.0,27896.0,0.92018404]
[1680589779727,0.03295442,27897.0,27896.0,0.92018404]
[1680589780203,0.03295442,27897.0,27896.0,0.97616509]
[1680589780429,0.03295442,27897.0,27896.0,0.94816509]
[1680589780647,0.03295442,27897.0,27896.0,0.97616509]
[1680589781993,0.03295442,27897.0,27896.0,1.0737996]
[1680589782207,0.03295442,27897.0,27896.0,1.42851016]
[1680589782445,0.02708726,27897.0,27896.0,1.42851016]
[1680589782892,0.0767,27898.0,27897.0,0.54718463]
[1680589783111,0.00051,27901.0,27899.0,0.3774]
[1680589783349,0.09948,27902.0,27900.0,1.28219488]
[1680589783350,0.09999,27902.0,27900.0,1.28219488]
[1680589783586,0.09999,27902.0,27901.0,0.42326133]
[1680589783812,0.09999,27902.0,27901.0,0.45649733]
[1680589785392,0.09999,27902.0,27901.0,0.84389733]
[1680589788471,0.09948,27902.0,27901.0,0.65136681]
[1680589788577,0.09948,27902.0,27901.0,0.76324125]
[1680589792685,0.11491654,27902.0,27901.0,0.76324125]
[1680589794361,0.11491654,27902.0,27901.0,0.25963081]
[1680589794678,0.09948,27902.0,27901.0,0.25963081]
[1680589795594,0.09948,27902.0,27901.0,0.27396681]
[1680589798337,0.09948,27902.0,27901.0,0.2738841]
[1680589800870,0.09948,27902.0,27901.0,0.6512841]
[1680589801100,0.09948,27902.0,27901.0,0.75450534]
[1680589801588,0.09948,27902.0,27901.0,0.6512841]
[1680589802319,0.09948,27902.0,27901.0,0.6369481]
[1680589802546,0.47520922,27902.0,27901.0,0.2595481]
[1680589802770,0.47571922,27902.0,27901.0,0.0289]
[1680589802997,0.47520922,27902.0,27901.0,0.0289]
[1680589803442,0.65520922,27902.0,27901.0,0.0289]
[1680589804118,0.65520922,27902.0,27901.0,0.28658455]
[1680589804348,0.65571922,27902.0,27901.0,0.28658359]
[1680589804489,0.65571922,27902.0,27901.0,0.036079]
[1680589804716,0.27590444,27902.0,27901.0,0.0289]
[1680589806345,0.27590444,27902.0,27901.0,0.46376709]
[1680589806566,0.19930444,27902.0,27901.0,0.86290709]
[1680589806772,0.17659424,27902.0,27901.0,1.24365534]
[1680589807214,0.17659424,27902.0,27901.0,0.79445225]
[1680589807439,0.17659424,27902.0,27901.0,0.42804]
[1680589808756,0.17659424,27902.0,27901.0,0.41804]
[1680589808971,0.17659424,27902.0,27901.0,0.44604]
[1680589809190,0.17659424,27902.0,27901.0,0.41804]
[1680589809399,0.17659424,27902.0,27901.0,0.51445023]
[1680589810910,0.17659424,27902.0,27901.0,0.431704]
[1680589811584,0.17659424,27902.0,27901.0,0.44604]
[1680589813258,0.17659424,27902.0,27901.0,0.8692122]
[1680589814813,0.17659424,27902.0,27901.0,0.8548762]
[1680589815090,0.62776638,27902.0,27901.0,0.4702522]
[1680589815293,0.87093682,27902.0,27901.0,0.72766762]
[1680589815506,0.70477638,27902.0,27901.0,0.4700722]
[1680589816137,0.70477638,27902.0,27901.0,0.4420722]
[1680589816336,0.70477638,27902.0,27901.0,0.4520722]
[1680589817214,0.60477638,27902.0,27901.0,0.4520722]
[1680589817817,0.60477638,27902.0,27901.0,0.4420722]
[1680589818033,0.60477638,27902.0,27901.0,0.4460722]
[1680589818239,0.60477638,27902.0,27901.0,0.4420722]
[1680589818451,0.60477638,27902.0,27901.0,0.4460722]
[1680589823981,0.25360424,27902.0,27901.0,0.4420722]
[1680589824115,0.25360424,27902.0,27901.0,0.72122262]
[1680589824350,0.25360424,27902.0,27901.0,0.70688662]
[1680589824750,0.25360424,27902.0,27901.0,0.70366762]
[1680589824928,0.25360424,27902.0,27901.0,0.69966762]
[1680589825121,0.25360424,27902.0,27901.0,0.71104662]
[1680589825328,0.25360424,27902.0,27901.0,0.4534512]
[1680589825542,0.25360424,27902.0,27901.0,0.4460722]
[1680589825746,0.25360424,27902.0,27901.0,0.70366762]
[1680589825959,0.25360424,27902.0,27901.0,0.69966762]
[1680589826163,0.64986318,27902.0,27901.0,0.69966762]
[1680589826389,0.64986318,27902.0,27901.0,0.4420722]
[1680589827003,0.64986318,27902.0,27901.0,0.4460722]
[1680589827211,0.64986318,27902.0,27901.0,0.4420722]
[1680589827423,0.64986318,27902.0,27901.0,0.4460722]
[1680589829142,0.3408674,27902.0,27901.0,0.4460722]
[1680589831968,0.61070081,27902.0,27901.0,0.4420722]
[1680589832181,0.60870081,27902.0,27901.0,0.4420722]
[1680589832397,0.60870081,27902.0,27901.0,0.23358507]
[1680589832624,0.61586781,27902.0,27901.0,0.23358507]
[1680589833039,0.61586781,27902.0,27901.0,0.65675727]
[1680589833484,0.60870081,27902.0,27901.0,0.65675727]
[1680589833716,0.61070081,27902.0,27901.0,0.65775727]
[1680589834646,0.69476443,27902.0,27901.0,0.65775727]
[1680589835324,0.61070081,27902.0,27901.0,0.65775727]
[1680589837748,0.61070081,27902.0,27901.0,0.4430722]
[1680589837969,0.61070081,27902.0,27901.0,0.61478876]
[1680589842011,0.61070081,27902.0,27901.0,0.65775727]
[1680589842446,0.61070081,27902.0,27901.0,0.61474361]
[1680589844195,0.60975943,27902.0,27901.0,0.61492361]
[1680589844411,0.60975943,27902.0,27901.0,0.62228661]
[1680589844661,0.60975943,27902.0,27901.0,0.61492361]
[1680589845093,0.60975943,27902.0,27901.0,0.65793727]
[1680589845684,0.60975943,27902.0,27901.0,0.4064249]
[1680589845925,0.61026943,27902.0,27901.0,0.23458507]
[1680589846365,0.61026943,27902.0,27901.0,0.65775727]
[1680589847528,0.60975943,27902.0,27901.0,0.65793727]
[1680589849646,0.60975943,27902.0,27901.0,0.82960615]
[1680589851434,0.60975943,27902.0,27901.0,0.65793727]
[1680589852380,0.25466286,27902.0,27901.0,0.65793727]
[1680589852600,0.25466286,27902.0,27901.0,0.723731]
[1680589853035,0.25466286,27902.0,27901.0,0.730968]
[1680589853489,0.17816286,27902.0,27901.0,0.53061893]
[1680589853693,0.17816286,27902.0,27901.0,0.53043893]
[1680589854405,0.17816286,27902.0,27901.0,0.78803435]
[1680589854630,0.17816286,27902.0,27901.0,0.78815435]
[1680589854820,0.17616286,27902.0,27901.0,0.78715435]
[1680589855079,0.17616286,27902.0,27901.0,0.79715435]
[1680589855301,0.17616286,27902.0,27901.0,0.78715435]
[1680589855535,0.17616286,27902.0,27901.0,0.79721435]
[1680589855753,0.17616286,27902.0,27901.0,0.53961893]
[1680589856195,0.17616286,27902.0,27901.0,0.52528293]
[1680589856427,0.17616286,27902.0,27901.0,0.4738252]
[1680589857324,0.15689754,27902.0,27901.0,0.8512252]
[1680589857781,0.15689754,27902.0,27901.0,1.23197345]
[1680589858006,0.15689754,27902.0,27901.0,0.8512252]
[1680589858236,0.15689754,27902.0,27901.0,0.98499985]
[1680589858698,0.15689754,27902.0,27901.0,0.97499985]
[1680589858927,0.15689754,27902.0,27901.0,0.4918252]
[1680589859176,0.56474444,27902.0,27901.0,0.4702522]
[1680589859407,0.64184444,27902.0,27901.0,0.4702522]
[1680589859635,0.64235444,27902.0,27901.0,0.4700722]
[1680589859863,0.23450754,27902.0,27901.0,0.4420722]
[1680589860054,0.23450754,27902.0,27901.0,0.4700722]
[1680589860319,0.21763097,27902.0,27901.0,0.4422522]
[1680589860512,0.21763097,27902.0,27901.0,0.4522522]
[1680589861251,0.60129063,27902.0,27901.0,0.23374851]
[1680589861482,0.14053097,27902.0,27901.0,0.4462522]
[1680589861705,0.14053097,27902.0,27901.0,0.51262577]
[1680589862156,0.14053097,27902.0,27901.0,0.78448546]
[1680589862376,0.14053097,27902.0,27901.0,0.53423277]
[1680589862616,0.14053097,27902.0,27901.0,0.70703798]
[1680589862861,0.14053097,27902.0,27901.0,0.69976698]
[1680589863079,0.14053097,27902.0,27901.0,0.70976698]
[1680589863533,0.56018425,27902.0,27901.0,0.70976698]
[1680589864382,0.62620168,27902.0,27901.0,0.4422522]
[1680589864621,0.62620168,27902.0,27901.0,0.66089968]
[1680589864622,0.56735125,27902.0,27901.0,0.66089968]
[1680589864851,0.61858625,27902.0,27901.0,0.40939068]
[1680589865073,0.68896625,27902.0,27901.0,0.40927068]
[1680589865295,0.69613325,27902.0,27901.0,0.30452268]
[1680589865514,0.46302011,27902.0,27901.0,0.08586878]
[1680589865733,1.33720263,27902.0,27901.0,0.08986878]
[1680589865973,1.30853163,27902.0,27901.0,0.22060426]
[1680589866186,1.24850812,27902.0,27901.0,0.22160426]
[1680589866474,1.24850812,27902.0,27901.0,0.09280478]
[1680589866699,1.24000812,27902.0,27901.0,0.09280478]
[1680589866917,1.24000812,27902.0,27901.0,0.09180478]
[1680589867129,1.24000812,27902.0,27901.0,0.22260426]
[1680589867345,1.24000812,27902.0,27901.0,0.09180478]
[1680589867558,1.09947715,27902.0,27901.0,0.09380478]
[1680589867793,0.6719807,27902.0,27901.0,0.09380478]
[1680589868014,0.6804807,27902.0,27901.0,0.09380478]
[1680589868230,1.07384961,27902.0,27901.0,0.09380478]
[1680589869110,0.94348397,27902.0,27901.0,0.007936]
[1680589869339,0.80158716,27902.0,27901.0,0.007936]
[1680589872265,0.79217046,27902.0,27901.0,0.007936]
[1680589872512,2.08219519,27902.0,27901.0,0.007936]
[1680589873254,2.45959519,27902.0,27901.0,0.005936]
[1680589873494,2.48559519,27902.0,27901.0,0.006936]
[1680589873722,1.98708873,27902.0,27901.0,0.006936]
[1680589874206,1.98705854,27902.0,27901.0,0.006936]
[1680589874436,1.96105854,27902.0,27901.0,0.005936]
[1680589874664,1.98705854,27902.0,27901.0,0.006936]
[1680589874891,1.98705854,27902.0,27901.0,0.005936]
[1680589874892,0.670974,27902.0,27901.0,0.005936]
[1680589875122,1.98708937,27902.0,27901.0,0.006936]
[1680589875783,0.696974,27902.0,27901.0,0.006936]
[1680589875997,0.796974,27902.0,27901.0,0.006936]
[1680589877282,0.8149707,27902.0,27901.0,0.006936]
[1680589877722,0.85128592,27902.0,27901.0,0.006936]
[1680589877966,0.8149707,27902.0,27901.0,0.006936]
[1680589878400,0.9549707,27902.0,27901.0,0.006936]
[1680589880210,2.24513836,27902.0,27901.0,0.006936]
[1680589880642,0.9549707,27902.0,27901.0,0.006936]
[1680589881488,2.38502169,27902.0,27901.0,0.006936]
[1680589881697,1.09484737,27902.0,27901.0,0.006936]
[1680589883673,2.94166622,27902.0,27901.0,0.006936]
[1680589883889,2.95806349,27902.0,27901.0,0.006936]
[1680589884117,3.04166622,27902.0,27901.0,0.006936]
[1680589888327,2.86246622,27902.0,27901.0,0.006936]
[1680589889422,2.86203486,27902.0,27901.0,0.006936]
[1680589890771,2.72215819,27902.0,27901.0,0.006936]
[1680589891885,2.79327121,27902.0,27901.0,0.006936]
[1680589894859,2.79327121,27902.0,27901.0,0.056936]
[1680589896037,2.69327121,27902.0,27901.0,0.056936]
[1680589897090,2.69327121,27902.0,27901.0,0.0106755]
[1680589897570,3.04715593,27902.0,27901.0,0.0106755]
[1680589897786,0.19988837,27898.0,27891.0,0.90553683]
[1680589898007,0.050186,27896.0,27891.0,0.90553683]
[1680589898223,0.20154881,27895.0,27891.0,0.90553683]
[1680589898413,0.07352,27894.0,27891.0,0.50623683]
[1680589898658,0.05077,27893.0,27891.0,0.50623683]
[1680589898871,0.00717,27892.0,27891.0,0.50623683]
[1680589899056,0.00717,27892.0,27891.0,0.08845981]
[1680589899274,0.01567,27892.0,27891.0,0.08945981]
[1680589899504,0.01567,27892.0,27891.0,0.08845981]
[1680589899742,0.01567,27892.0,27891.0,0.08945981]
[1680589900210,0.02867,27892.0,27891.0,0.09045981]
[1680589900872,0.32867,27892.0,27891.0,0.09045981]
[1680589901115,0.40379248,27892.0,27891.0,0.09045981]
[1680589901982,0.39079248,27892.0,27891.0,0.08845981]
[1680589902651,0.39130248,27892.0,27891.0,0.01732762]
[1680589902888,0.44258748,27892.0,27891.0,0.01732762]
[1680589903113,0.46287048,27892.0,27891.0,0.01832762]
[1680589903844,0.41079248,27892.0,27891.0,0.01832762]
[1680589904495,0.41079248,27892.0,27891.0,0.1041964]
[1680589904708,0.4468302,27892.0,27891.0,0.1041964]
[1680589905127,0.37170772,27892.0,27891.0,0.1041964]
[1680589906676,0.37170772,27892.0,27891.0,0.23299588]
[1680589906886,0.37170772,27892.0,27891.0,0.65637042]
[1680589907338,0.37170772,27892.0,27891.0,0.23299588]
[1680589908016,0.35170772,27892.0,27891.0,0.23199588]
[1680589908244,0.37170772,27892.0,27891.0,0.23299588]
[1680589908462,0.43038297,27892.0,27891.0,0.23199588]
[1680589908688,0.45038297,27892.0,27891.0,0.65637079]
[1680589908936,0.43038297,27892.0,27891.0,0.65537079]
[1680589909371,0.37170772,27892.0,27891.0,0.65637079]
[1680589909602,0.35170772,27892.0,27891.0,0.65537079]
[1680589909831,0.37170772,27892.0,27891.0,0.57050201]
[1680589910051,0.37170772,27892.0,27891.0,0.19005082]
[1680589910268,0.37170772,27892.0,27891.0,0.61342573]
[1680589910487,0.35170772,27892.0,27891.0,0.61242573]
[1680589910717,0.35170772,27892.0,27891.0,0.59509811]
[1680589910950,0.42838297,27892.0,27891.0,0.59509811]
[1680589911205,0.42121297,27892.0,27891.0,0.59509811]
[1680589911432,0.44121297,27892.0,27891.0,0.59609811]
[1680589911698,0.44121297,27892.0,27891.0,0.59509811]
[1680589911912,0.46838297,27892.0,27891.0,0.59609811]
[1680589912137,0.56121297,27892.0,27891.0,0.59509811]
[1680589912358,0.58121297,27892.0,27891.0,0.59609811]
[1680589912575,0.56121297,27892.0,27891.0,0.80974559]
[1680589912807,0.51170772,27892.0,27891.0,0.59609811]
[1680589913243,0.49170772,27892.0,27891.0,0.59509811]
[1680589914363,0.49170772,27892.0,27891.0,0.63802239]
[1680589914580,0.51170772,27892.0,27891.0,0.21564748]
[1680589914794,0.49170772,27892.0,27891.0,0.80974629]
[1680589915018,0.51170772,27892.0,27891.0,0.38737138]
[1680589915243,0.49170772,27892.0,27891.0,0.63802239]
[1680589915462,0.51170772,27892.0,27891.0,0.21564748]
[1680589915683,0.49170772,27892.0,27891.0,0.63802239]
[1680589915895,0.48453772,27892.0,27891.0,0.21464748]
[1680589916108,0.50453772,27892.0,27891.0,0.21564748]
[1680589916329,1.01589414,27892.0,27891.0,0.63914239]
[1680589916552,1.01562414,27892.0,27891.0,0.63920239]
[1680589916764,1.01562414,27892.0,27891.0,0.5963434]
[1680589916975,0.99562414,27892.0,27891.0,0.5953434]
[1680589917185,1.01562414,27892.0,27891.0,0.17296849]
[1680589917404,1.01562414,27892.0,27891.0,0.5961634]
[1680589917634,1.01562414,27892.0,27891.0,0.5963434]
[1680589918545,1.02412414,27892.0,27891.0,0.5963434]
[1680589918757,1.07581814,27892.0,27891.0,0.5963434]
[1680589920318,1.07581814,27892.0,27891.0,0.81099088]
[1680589921818,1.07581814,27892.0,27891.0,0.63920239]
[1680589922028,1.07581814,27892.0,27891.0,0.81102466]
[1680589922242,1.07581814,27892.0,27891.0,0.63920239]
[1680589922669,1.08468037,27892.0,27891.0,0.63920239]
[1680589923951,0.27175395,27892.0,27891.0,0.63920239]
[1680589928355,0.27175395,27892.0,27891.0,0.42455491]
[1680589929449,0.69240606,27892.0,27891.0,0.42455491]
[1680589932193,0.69240606,27892.0,27891.0,0.21609752]
[1680589932665,0.69240606,27892.0,27891.0,0.63947243]
[1680589935124,0.64071206,27892.0,27891.0,0.63947243]
[1680589936016,0.69279206,27892.0,27891.0,0.63947243]
[1680589938072,0.78125627,27892.0,27891.0,0.63947243]
[1680589939211,1.08125627,27892.0,27891.0,0.63947243]
[1680589940335,1.07759327,27892.0,27891.0,0.63947243]
[1680589940561,1.02417627,27892.0,27891.0,0.63947243]
[1680589940785,0.93571206,27892.0,27891.0,0.63947243]
[1680589942337,0.98739906,27892.0,27891.0,0.63947243]
[1680589942766,0.98763906,27892.0,27891.0,0.81121936]
[1680589942983,0.98790906,27892.0,27891.0,0.81121936]
[1680589943207,0.93622206,27892.0,27891.0,0.59630184]
[1680589943438,1.12134697,27892.0,27891.0,0.59630184]
[1680589943706,1.17269097,27892.0,27891.0,0.59630184]
[1680589948261,1.17269097,27892.0,27891.0,0.17292693]
[1680589948703,1.17269097,27892.0,27891.0,0.59630184]
[1680589948943,1.17269097,27892.0,27891.0,0.30185842]
[1680589949160,1.17269097,27892.0,27891.0,0.17292693]
[1680589949375,1.17269097,27892.0,27891.0,0.30185284]
[1680589949614,1.17269097,27892.0,27891.0,0.30185203]
[1680589949831,1.17479297,27892.0,27891.0,0.72522694]
[1680589950050,1.06686806,27892.0,27891.0,0.59630184]
[1680589950309,1.01342206,27892.0,27891.0,0.59630184]
[1680589951848,1.01342206,27892.0,27891.0,0.72522632]
[1680589952324,0.59276995,27892.0,27891.0,0.59630184]
[1680589954093,0.64332795,27892.0,27891.0,0.31639524]
[1680589954312,0.64332795,27892.0,27891.0,0.73977424]
[1680589954313,0.59276995,27892.0,27891.0,0.73977424]
[1680589954510,0.59276995,27892.0,27891.0,0.61084297]
[1680589954736,0.50839995,27892.0,27891.0,0.61084297]
[1680589954960,0.50839995,27892.0,27891.0,0.82573766]
[1680589955440,0.50788995,27892.0,27891.0,0.82579766]
[1680589956140,0.50788995,27892.0,27891.0,0.82585766]
[1680589956365,0.50788995,27892.0,27891.0,0.65395356]
[1680589961076,0.56268695,27892.0,27891.0,0.65395356]
[1680589961309,0.55644795,27892.0,27891.0,0.65395356]
[1680589961530,0.50788995,27892.0,27891.0,0.65395356]
[1680589968413,0.50839995,27892.0,27891.0,0.6520967]
[1680589971302,0.51556995,27892.0,27891.0,0.6520967]
[1680589972430,0.50839995,27892.0,27891.0,0.6520967]
[1680589973604,0.51556995,27892.0,27891.0,0.6520967]
[1680589974751,0.50839995,27892.0,27891.0,0.6520967]
[1680589976128,0.50839995,27892.0,27891.0,0.6709967]
[1680589976325,0.51556995,27892.0,27891.0,0.6520967]
[1680589978070,1.07777759,27892.0,27891.0,0.6520967]
[1680589978329,1.13000959,27892.0,27891.0,0.60917632]
[1680589979766,1.11000959,27892.0,27891.0,0.60917632]
[1680589980452,1.13700959,27892.0,27891.0,0.60917632]
[1680589982439,1.13700959,27892.0,27890.0,0.21509752]
[1680589982440,2.17961439,27892.0,27890.0,0.0861797]
[1680589982692,1.76827356,27891.0,27889.0,0.0861197]
[1680589982926,1.4705886,27890.0,27888.0,0.0859997]
[1680589983158,1.91656696,27889.0,27888.0,0.0859997]
[1680589983373,1.92373796,27889.0,27888.0,0.0859997]
[1680589984292,0.63324536,27889.0,27888.0,0.00038569]
[1680589984759,0.543823,27889.0,27888.0,0.00038569]
[1680589985206,0.570823,27889.0,27888.0,0.00038569]
[1680589985428,0.90254375,27889.0,27888.0,0.00038569]
[1680589985842,0.87554375,27889.0,27888.0,0.00038569]
[1680589986357,0.90254375,27889.0,27888.0,0.00038569]
[1680589986581,1.03489173,27889.0,27888.0,0.00038569]
[1680589987267,0.1,27888.0,27886.0,0.0859997]
[1680589987493,0.161239,27887.0,27886.0,0.0859997]
[1680589987713,0.461239,27887.0,27886.0,0.0859997]
[1680589987942,0.446896,27887.0,27886.0,0.0859997]
[1680589988169,0.54381835,27887.0,27886.0,0.0859997]
[1680589988882,0.57081835,27887.0,27886.0,0.0859997]
[1680589990214,0.57081835,27887.0,27886.0,0.08664256]
[1680589990661,0.94562371,27887.0,27886.0,0.00064286]
[1680589991111,0.94562371,27887.0,27885.0,0.16227911]
[1680589991112,0.86842371,27887.0,27885.0,0.16227911]
[1680589991351,0.14792967,27886.0,27885.0,0.29104839]
[1680589991572,0.41166867,27886.0,27885.0,0.29104839]
[1680589991788,0.46305067,27886.0,27885.0,0.29104839]
[1680589992452,0.46305067,27886.0,27885.0,0.16227911]
[1680589992708,0.41166867,27886.0,27885.0,0.29104839]
[1680589993140,0.43866867,27886.0,27885.0,0.16227911]
[1680589994500,0.49381967,27886.0,27885.0,0.16227911]
[1680589994720,0.43866867,27886.0,27885.0,0.16227911]
[1680589994918,0.41166867,27886.0,27885.0,0.16227911]
[1680589995136,0.43866867,27886.0,27885.0,0.16227911]
[1680589995375,0.41166867,27886.0,27885.0,0.16227911]
[1680589995564,0.43866867,27886.0,27885.0,0.16227911]
[1680589996912,0.88713543,27886.0,27885.0,0.16227911]
[1680589997124,0.88713543,27886.0,27885.0,0.07627941]
[1680589997350,0.88764543,27886.0,27885.0,0.06708941]
[1680589997790,0.86064543,27886.0,27885.0,0.06708941]
[1680589998024,0.88764543,27886.0,27885.0,0.06708941]
[1680589999351,0.96484543,27886.0,27885.0,0.06708941]
[1680590000484,0.93784543,27886.0,27885.0,0.06708941]
[1680590000708,0.96484543,27886.0,27885.0,0.06708941]
[1680590001584,0.93784543,27886.0,27885.0,0.06708941]
[1680590001862,0.96484543,27886.0,27885.0,0.06708941]
[1680590002085,0.93784543,27886.0,27885.0,0.06708941]
[1680590002304,1.10484543,27886.0,27885.0,0.06708941]
[1680590003182,1.10484543,27886.0,27885.0,0.06786087]
[1680590003628,0.70937467,27886.0,27885.0,0.05874087]
[1680590003858,1.15982484,27886.0,27885.0,0.04074087]
[1680590004333,1.17276956,27886.0,27885.0,0.04074087]
[1680590004543,0.68186467,27886.0,27885.0,0.04074087]
[1680590004765,0.70886467,27886.0,27885.0,0.04074087]
[1680590004985,1.0135187,27886.0,27885.0,0.04074087]
[1680590005207,1.0405187,27886.0,27885.0,0.04074087]
[1680590005656,0.70886467,27886.0,27885.0,0.02303087]
[1680590007272,1.99971033,27886.0,27885.0,0.01822087]
[1680590007497,1.99971033,27886.0,27885.0,0.01464087]
[1680590007722,1.99970977,27886.0,27885.0,0.01464087]
[1680590007892,1.99971336,27886.0,27885.0,0.01464087]
[1680590008584,1.13280656,27886.0,27885.0,0.01464087]
[1680590008954,1.13280656,27886.0,27885.0,0.00077146]
[1680590008955,1.03680989,27886.0,27885.0,0.00077146]
[1680590009159,1.03680989,27886.0,27884.0,0.0208]
[1680590009362,0.52655024,27885.0,27884.0,0.0208]
[1680590009577,0.83956624,27885.0,27884.0,0.0208]
[1680590010172,0.83956624,27885.0,27884.0,0.02170007]
[1680590010864,0.87506624,27885.0,27884.0,0.02170007]
[1680590011537,0.027,27885.0,27884.0,0.02170007]
[1680590011976,0.027,27885.0,27884.0,0.04060007]
[1680590012226,0.027,27885.0,27884.0,0.04817007]
[1680590012455,0.027,27885.0,27884.0,0.04835007]
[1680590012673,0.027,27885.0,27884.0,0.04078007]
[1680590012896,0.14,27886.0,27884.0,0.04078007]
[1680590013110,0.027,27885.0,27884.0,0.12677977]
[1680590013344,0.44,27886.0,27885.0,0.0772]
[1680590013575,0.14,27886.0,27885.0,0.4671405]
[1680590013792,0.14,27886.0,27885.0,0.80942718]
[1680590015142,0.14,27886.0,27885.0,0.9811262]
[1680590015345,0.153,27886.0,27885.0,0.85235692]
[1680590015557,0.153,27886.0,27885.0,0.73300648]
[1680590015765,0.153,27886.0,27885.0,0.77608211]
[1680590018111,0.153,27886.0,27885.0,0.77685357]
[1680590018286,0.153,27886.0,27885.0,0.77667357]
[1680590018435,0.153,27886.0,27885.0,0.77685357]
[1680590019951,0.153,27886.0,27885.0,0.99177109]
[1680590020766,0.153,27886.0,27885.0,0.82007207]
[1680590024753,0.190283,27886.0,27885.0,0.82007207]
[1680590024943,0.190283,27886.0,27885.0,0.60515455]
[1680590027905,0.190283,27886.0,27885.0,0.60497455]
[1680590028147,0.190283,27886.0,27885.0,0.60515455]
[1680590029159,0.190283,27886.0,27885.0,0.70515455]
[1680590029779,0.190283,27886.0,27885.0,0.83493598]
[1680590030045,0.190283,27886.0,27885.0,1.51288376]
[1680590030237,0.1902029,27886.0,27885.0,1.59200376]
[1680590030459,0.17117461,27886.0,27885.0,1.59200376]
[1680590030690,0.17117461,27886.0,27885.0,2.10129432]
[1680590030922,0.00051,27889.0,27887.0,0.5774]
[1680590031147,0.00051,27892.0,27891.0,0.5774]
[1680590031380,0.00051,27893.0,27891.0,1.16798353]
[1680590031603,0.00051,27894.0,27892.0,0.74630358]
[1680590031828,0.00051,27894.0,27893.0,0.65484301]
[1680590031829,0.00024,27894.0,27893.0,0.65484301]
[1680590032064,0.00051,27895.0,27893.0,0.67374301]
[1680590032288,0.00051,27895.0,27894.0,0.33741233]
[1680590032521,0.00051,27895.0,27894.0,0.45638445]
[1680590033027,0.42146474,27899.0,27894.0,0.37065233]
[1680590033257,0.42197474,27899.0,27896.0,0.0772]
[1680590033710,0.36716864,27898.0,27897.0,0.0189]
[1680590033970,0.36767864,27898.0,27897.0,0.0189]
[1680590034199,0.00051,27898.0,27897.0,0.0189]
[1680590034423,0.00051,27899.0,27897.0,0.033238]
[1680590034649,0.001,27898.0,27897.0,0.0339]
[1680590034874,0.00151,27898.0,27897.0,0.06240156]
[1680590035102,0.00051,27898.0,27897.0,0.04740156]
[1680590035327,0.00051,27898.0,27897.0,0.06830156]
[1680590035549,0.00051,27900.0,27897.0,0.06630156]
[1680590035770,0.001,27898.0,27897.0,0.08130156]
[1680590035986,0.001,27898.0,27897.0,0.06240156]
[1680590036217,0.00151,27898.0,27897.0,0.08130156]
[1680590036912,0.00051,27898.0,27897.0,0.06630156]
[1680590037130,0.00051,27898.0,27897.0,0.09563956]
[1680590037131,0.00151,27898.0,27897.0,0.09563956]
[1680590037567,0.00151,27898.0,27897.0,0.048238]
[1680590037837,0.00151,27898.0,27897.0,0.0339]
[1680590037838,0.001,27898.0,27897.0,0.0339]
[1680590039152,0.001,27898.0,27897.0,0.048238]
[1680590040547,0.001,27898.0,27897.0,0.148238]
[1680590040817,0.00151,27898.0,27897.0,0.148238]
[1680590041039,0.00151,27898.0,27897.0,0.53507433]
[1680590041253,0.00151,27898.0,27897.0,0.68867433]
[1680590044689,0.001,27898.0,27897.0,0.78867433]
[1680590045563,0.001,27898.0,27897.0,0.68867433]
[1680590046205,0.001,27898.0,27897.0,0.67433633]
[1680590046420,0.00151,27898.0,27897.0,0.67433633]
[1680590048248,0.00151,27898.0,27897.0,0.68867433]
[1680590049117,0.00151,27898.0,27897.0,0.61157433]
[1680590050210,0.001,27898.0,27897.0,0.61157433]
[1680590050424,0.001,27898.0,27897.0,0.59287433]
[1680590051063,0.001,27898.0,27897.0,0.59347433]
[1680590052151,0.001,27898.0,27897.0,0.94818489]
[1680590052578,0.001,27898.0,27897.0,0.57913633]
[1680590052788,0.001,27898.0,27897.0,0.59347433]
[1680590053222,0.33662044,27901.0,27897.0,0.59347433]
[1680590053457,0.33662044,27901.0,27898.0,0.52384743]
[1680590053668,0.33662044,27901.0,27898.0,0.54274743]
[1680590053891,0.33662044,27901.0,27899.0,0.0189]
[1680590054104,0.33662044,27901.0,27899.0,0.00942]
[1680590054329,0.33662044,27901.0,27900.0,0.00942]